[Event "GCT Superbet Romania 2022"]
[Site "Bucharest"]
[Date "2022.05.08"]
[Round "4.1"]
[White "So, Wesley"]
[Black "Nepomniachtchi, Ian"]
[Result "1-0"]
[ECO "E05"]
[WhiteElo "2766"]
[BlackElo "2773"]
[Annotator "TA"]
[PlyCount "115"]
[EventDate "2022.05.05"]
[EventType "tourn"]
[EventCountry "ROU"]
[SourceTitle "playchess.com"]
[Source "ChessBase"]
[SourceQuality "1"]
[TimeControl "40/5400+30:1800+30"]

{[%evp 13,115,0,10,24,21,20,27,17,24,21,18,9,22,18,25,25,24,12,14,16,21,18,16,16,18,19,56,58,62,54,46,66,66,59,77,77,103,103,103,103,105,95,104,95,95,102,99,96,95,95,95,95,93,95,142,95,95,93,93,93,93,93,93,77,93,93,93,93,102,93,93,93,100,86,93,93,105,97,100,93,93,86,93,93,93,93,95,95,95,93,105,103,111,111,157,157,152,148,135,138,206,200,4133,4133]} 1. Nf3 {[%emt 0:00:04]} d5 {[%emt 0:00:13][%cal Bd7d5,Bd5c4][%mdl 32]} 2. d4 {[%emt 0:00:06]} Nf6 {[%emt 0:00:11]} 3. c4 {[%emt 0:00:05]} e6 {[%emt 0:00:06]} 4. g3 {[%emt 0:00:05]} Be7 {[%emt 0:00:14]} 5. Bg2 {[%emt 0:00:08]} O-O {[%emt 0:00:07]} 6. O-O {[%emt 0:00:05]} dxc4 {[%emt 0:00:09]} 7. Qc2 {[%emt 0:01:20]} b5 {[%emt 0:00:13]} 8. a4 {[%emt 0:06:23] E05: Open Catalan: 5 Nf3 Be7.} Bb7 {[%emt 0:00:34]} 9. axb5 {[%emt 0:02:04]} a6 {[%emt 0:00:31]} 10. bxa6 {[%emt 0:00:07] White has an edge.} Nxa6 {[%emt 0:00:08][%cal Bb8a6,Ba6b4,Bb4c2][%mdl 32]} 11. Qxc4 {[%emt 0:00:04]} Bd5 {[%emt 0:00:24]} 12. Qc3 {[%emt 0:00:32]} c5 {[%emt 0:10:06]} 13. Be3 {[%emt 0:00:19]} Ne4 {[%emt 0:00:06]} 14. Qe1 {[%emt 0:00:24]} Nb4 {[%emt 0:00:54]} 15. Rxa8 {[%emt 0:02:35]} Qxa8 {[%emt 0:00:59]} 16. Nc3 {[%emt 0:00:17]} Nxc3 {[%emt 0:03:20]} 17. bxc3 {[%emt 0:00:16]} Nc2 {[%emt 0:00:39]} 18. Qd2 {[%emt 0:00:35]} Nxe3 {[%emt 0:00:14]} 19. Qxe3 {[%emt 0:00:05]} cxd4 {[%emt 0:01:36]} 20. cxd4 {[%emt 0:00:08]} Rd8 {[%emt 0:00:21]} 21. Qf4 $1 {[%emt 0:06:56][%cal Of3e5]} h6 {[%emt 0:01:46] [#]} 22. e3 $146 {[%emt 0:14:37]} ({Predecessor:} 22. h4 Bf6 23. e3 Rc8 24. Ne1 Bxg2 25. Nxg2 Rc4 26. Qg4 e5 27. Qe2 Qc6 28. dxe5 Bxe5 {½-½ (43) Giri,A (2772)-Nepomniachtchi,I (2782) Warsaw 2021}) 22... Bd6 {[%emt 0:01:06]} 23. Qh4 {[%emt 0:00:34]} Bb4 {[%emt 0:00:10]} 24. Qg4 {[%emt 0:15:18]} Bxf3 {[%emt 0:32:19]} 25. Bxf3 {[%emt 0:00:09]} Qa5 {[%emt 0:00:18]} 26. Rb1 {[%emt 0:26:11][%cal Od4d5]} Bd6 {[%emt 0:00:31]} 27. h4 {[%emt 0:04:22]} Rb8 {[%emt 0:00:59]} 28. Rxb8+ {[%emt 0:00:30]} Bxb8 $16 {[%emt 0:00:02][%mdl 4096] Endgame KQB-KQB} 29. d5 {[%emt 0:04:13]} Qa1+ {[%emt 0:01:36]} 30. Kg2 {[%emt 0:00:07]} Qe5 {[%emt 0:00:12]} 31. Qc4 {[%emt 0:03:27] And now Qc8+ would win.} Bd6 {[%emt 0:00:44]} 32. dxe6 {[%emt 0:00:52]} Qxe6 {[%emt 0:00:54]} 33. Bd5 {[%emt 0:00:12]} Qd7 {[%emt 0:01:02]} (33... Qf6 $142) 34. h5 {[%emt 0:00:30]} (34. Qe4 $142) 34... Qf5 {[%emt 0:04:13]} 35. Qc6 {[%emt 0:05:37]} Bf8 {[%emt 0:00:36]} 36. Bf3 {[%emt 0:02:04]} Qe6 {[%emt 0:02:20]} 37. Qa8 {[%emt 0:00:42]} Qe5 {[%emt 0:00:28]} 38. Bg4 {[%emt 0:02:44]} Qf6 {[%emt 0:02:40]} 39. Bd1 {[%emt 0:01:56]} Qf5 {[%emt 0:01:12]} 40. Qb7 {[%emt 0:00:00]} Qe5 {[%emt 0:00:00]} 41. Be2 {[%emt 0:07:19]} Qf5 {[%emt 0:03:44]} 42. Bf3 {[%emt 0:02:59]} Qe5 {[%emt 0:07:07]} 43. Bg4 {[%emt 0:00:09]} Qg5 {[%emt 0:09:42]} 44. Qf3 {[%emt 0:02:01]} g6 {[%emt 0:00:43]} 45. hxg6 {[%emt 0:01:54]} Qxg6 {[%emt 0:00:06]} 46. Bf5 {[%emt 0:00:54]} Qf6 {[%emt 0:01:46]} 47. Qd5 {[%emt 0:01:25]} Qd6 {[%emt 0:01:37]} 48. Qc4 {[%emt 0:00:18] White is more active.} Qb4 {[%emt 0:00:07]} 49. Qe2 {[%emt 0:01:30]} Qb7+ {[%emt 0:00:34]} 50. Kh2 {[%emt 0:00:06]} Bg7 {[%emt 0:00:52]} 51. Bd3 {[%emt 0:00:39]} Qd5 {[%emt 0:00:32]} 52. Bc4 {[%emt 0:00:31]} Qe4 {[%emt 0:00:19]} 53. Bb3 {[%emt 0:00:33]} Qf5 {[%emt 0:01:07] Prevents Qh5.} (53... Qb1 $142) 54. e4 {[%emt 0:01:53][%cal Be3e4,Be4e5][%mdl 32]} Qf6 {[%emt 0:16:22][%cal Oh6h5]} 55. Kg2 {[%emt 0:01:03]} Qb6 {[%emt 0:01:53]} 56. Bd5 {[%emt 0:01:24]} Bd4 {[%emt 0:04:19]} (56... Qg6 $16 57. e5 Qf5) 57. e5 $18 {[%emt 0:04:28]} Qg6 {[%emt 0:02:48] [#] Inhibits Qh5.} (57... Kf8 58. Qf3 Qg6) 58. Bxf7+ $1 {[%emt 0:02:01][%mdl 512] Weighted Error Value: White=0.03 (flawless) /Black=0.07 (flawless)} 1-0

[Event "GCT Superbet Romania 2022"]
[Site "Bucharest"]
[Date "2022.05.08"]
[Round "4.2"]
[White "Mamedyarov, Shakhriyar"]
[Black "Deac, Bogdan-Daniel"]
[Result "1/2-1/2"]
[ECO "D39"]
[WhiteElo "2770"]
[BlackElo "2671"]
[Annotator "TA"]
[PlyCount "79"]
[EventDate "2022.05.05"]
[EventType "tourn"]
[EventCountry "ROU"]
[SourceTitle "playchess.com"]
[Source "ChessBase"]
[SourceQuality "1"]
[TimeControl "40/5400+30:1800+30"]

{[%evp 15,79,10,16,10,9,9,16,15,22,25,39,0,0,0,0,0,9,25,0,43,43,-18,-31,-30,0,-57,-35,-20,-61,-81,-80,-69,-71,-76,-16,-14,-15,-7,-20,-24,0,0,0,0,0,-1,-9,-6,0,-8,0,0,0,0,0,0,0,0,0,0,0,0,0,-5,0,0]} 1. d4 {[%emt 0:00:02]} Nf6 {[%emt 0:00:02]} 2. c4 {[%emt 0:00:12]} e6 {[%emt 0:00:02]} 3. Nf3 {[%emt 0:00:05]} d5 {[%emt 0:00:19]} 4. Nc3 {[%emt 0:00:08]} dxc4 {[%emt 0:00:41]} 5. e4 {[%emt 0:00:21]} Bb4 {[%emt 0:00:07]} 6. Bg5 {[%emt 0:00:44]} h6 {[%emt 0:03:04]} 7. Bxf6 {[%emt 0:00:12]} Qxf6 {[%emt 0:00:04]} 8. Bxc4 {[%emt 0:00:17]} c5 {[%emt 0:00:07]} 9. O-O {[%emt 0:00:58] D39: Queen's Gambit Declined: Ragozin Defence with 5 Bg5 dxc4.} cxd4 $1 {[%emt 0:00:17] [#] 9...cxd4 scores better than 9...0-0.} 10. e5 $1 {[%emt 0:00:19]} Qd8 {[%emt 0:00:13]} 11. Ne4 {[%emt 0:00:16][%mdl 1024] White has compensation.} O-O {[%emt 0:05:50]} 12. Qe2 {[%emt 1:32:56]} Be7 {[%emt 0:02:56]} 13. Rfd1 {[%emt 0:00:00]} (13. Rad1 $5 {[%cal Rd1d4]}) 13... Qa5 {[%emt 0:00:47]} 14. a3 {[%emt 0:00:00]} (14. Rxd4 Nc6 15. Rd2 (15. Qd2 Qc7 $15) 15... Nxe5 $17) 14... Rd8 {[%emt 0:00:51]} 15. b4 {[%emt 0:00:00]} Qb6 {[%emt 0:00:19]} 16. g4 {[%emt 0:00:00]} Nd7 {[%emt 0:04:17]} 17. Rac1 {[%emt 0:00:00]} (17. Rxd4 Nxe5 $1 18. Rxd8+ Qxd8 $17) 17... Qc7 {[%emt 0:00:15] [#]} 18. Ng3 $146 {[%emt 0:00:00]} (18. Bxe6 $1 $14 Qb6 19. Bf5) ({Predecessor:} 18. Bxe6 Qb6 19. Bf5 Nf8 20. Nc5 g6 21. Na4 Qa6 22. Qxa6 bxa6 23. Bxc8 Raxc8 24. Rxc8 Rxc8 25. Rxd4 {½-½ (31) Gukesh,D (2578)-So,W (2770) chess24.com INT 2021}) 18... Qb8 $11 {[%emt 0:06:33]} 19. h4 {[%emt 0:00:00]} Nf8 {[%emt 0:13:41]} 20. Bd3 {[%emt 0:00:00]} (20. Rxd4 Rxd4 21. Nxd4 Ng6 $15) ({Reject} 20. Nxd4 a5 21. h5 axb4 22. axb4 Bxb4 $15) (20. g5 $1 $11) 20... b6 {[%emt 0:07:04]} 21. g5 $1 {[%emt 0:00:00] gxh6 is the strong threat.} Bb7 {[%emt 0:01:25]} 22. gxh6 {[%emt 0:00:00]} Bxf3 {[%emt 0:03:09]} ({Don't play} 22... gxh6 23. Be4 $16) 23. Qxf3 {[%emt 0:00:00] Threatens to win with Be4.} Qxe5 {[%emt 0:00:09]} 24. hxg7 {[%emt 0:00:00] [#]} Qxg7 {[%emt 0:08:22]} (24... Nd7 $1 $17) 25. Kh1 $1 {[%emt 0:00:00]} Qf6 {[%emt 0:05:37]} (25... Bxh4 $2 26. Nh5 Qh6 27. Rg1+ (27. Rc7 Rd5 $18) 27... Ng6 28. Rc7 $18) 26. Qg4+ {[%emt 0:00:00]} Ng6 {[%emt 0:00:59]} 27. Be4 {[%emt 0:00:00]} Rac8 {[%emt 0:01:27]} (27... Rab8 {seems wilder.} 28. Rc7 Qxh4+ 29. Qxh4 Bxh4 30. Rg1 Re8) 28. Bxg6 {[%emt 0:00:00] The position is equal.} Qxg6 {[%emt 0:00:43]} 29. Qxg6+ {[%emt 0:00:00]} fxg6 {[%emt 0:00:05]} 30. Rxc8 {[%emt 0:00:00]} Rxc8 {[%emt 0:00:15]} 31. Rxd4 {[%emt 0:00:00][%mdl 4096] Endgame KRB-KRN} a5 {[%emt 0:03:08]} 32. Kg2 {[%emt 0:00:00]} axb4 {[%emt 0:01:20]} 33. axb4 {[%emt 0:00:00]} Rc2 {[%emt 0:00:11]} 34. Re4 {[%emt 0:00:00]} Kf7 {[%emt 0:00:04]} 35. Rf4+ {[%emt 0:00:00]} Kg8 {[%emt 0:00:26]} 36. Re4 {[%emt 0:00:00]} Kf7 {[%emt 0:00:06]} 37. Rf4+ {[%emt 0:00:00]} Kg8 {[%emt 0:00:05]} 38. Re4 {[%emt 0:00:00]} Kf7 {[%emt 0:00:04]} 39. Rf4+ {[%emt 0:00:00]} Kg8 {[%emt 0:00:05]} 40. Re4 {[%emt 0:00:00] Weighted Error Value: White=0.07 (flawless) /Black=0.06 (flawless)} 1/2-1/2

[Event "GCT Superbet Romania 2022"]
[Site "Bucharest"]
[Date "2022.05.08"]
[Round "4.3"]
[White "Firouzja, Alireza"]
[Black "Rapport, Richard"]
[Result "1/2-1/2"]
[ECO "B45"]
[WhiteElo "2804"]
[BlackElo "2776"]
[Annotator "TA"]
[PlyCount "92"]
[EventDate "2022.05.05"]
[EventType "tourn"]
[EventCountry "ROU"]
[SourceTitle "playchess.com"]
[Source "ChessBase"]
[SourceQuality "1"]
[TimeControl "40/5400+30:1800+30"]

{[%evp 27,92,14,6,22,21,12,33,27,30,11,22,12,28,30,29,35,27,5,21,21,22,22,20,22,20,14,14,28,30,23,22,27,69,69,31,31,38,67,67,8,8,8,12,14,27,5,12,0,6,0,6,0,0,0,0,0,0,0,0,0,0,0,0,0,0,0,0]} 1. e4 {[%emt 0:00:03]} c5 {[%emt 0:01:12]} 2. Nf3 {[%emt 0:00:07]} e6 {[%emt 0:00:17]} 3. d4 {[%emt 0:00:12]} cxd4 {[%emt 0:00:06]} 4. Nxd4 {[%emt 0:00:07]} Nc6 {[%emt 0:00:05]} 5. Nc3 {[%emt 0:00:17]} Nf6 {[%emt 0:00:25]} 6. Nxc6 {[%emt 0:02:03]} bxc6 {[%emt 0:00:14]} 7. e5 {[%emt 0:00:05]} Nd5 {[%emt 0:00:08]} 8. Ne4 {[%emt 0:00:07]} Qc7 {[%emt 0:00:10]} 9. f4 {[%emt 0:00:26]} Qb6 {[%emt 0:00:15]} 10. c4 {[%emt 0:02:49]} Bb4+ {[%emt 0:00:18]} 11. Ke2 {[%emt 0:00:11]} f5 {[%emt 0:00:12]} 12. Nf2 {[%emt 0:01:29]} Ba6 {[%emt 0:00:24]} 13. Kf3 {[%emt 0:00:10]} Ne7 {[%emt 0:00:11][%cal Bd5e7,Be7c8,Bc8d6,Bd6c4][%mdl 32]} 14. Be3 {[%emt 0:01:27]} Bc5 {[%emt 0:00:11]} 15. Bxc5 {[%emt 0:00:13] B45: Sicilian Four Knights.} Qxc5 {[%emt 0:00:08]} 16. Qd6 {[%emt 0:00:27]} Qb6 {[%emt 0:00:20]} 17. Be2 {[%emt 0:04:59] White is slightly better.} Rd8 {[%emt 0:04:54]} 18. b4 {[%emt 0:14:21] [#]} Nc8 $146 {[%emt 0:01:51]} ({Predecessor:} 18... g5 19. fxg5 Ng6 20. g3 Qb8 21. Kg2 Nxe5 22. Bh5+ Ng6 23. Qd4 O-O 24. c5 d6 {½-½ (49) Baranowski,T (2375)-Leupold,V (2386) ICCF email 2018}) 19. Qc5 {[%emt 0:05:10]} d5 {[%emt 0:01:04]} 20. exd6 {[%emt 0:05:13]} Nxd6 {[%emt 0:01:03]} 21. Qe5 {[%emt 0:14:32][%csl LRe6,LRg7]} c5 $1 {[%emt 0:15:21]} 22. Qxc5 {[%emt 0:05:25]} ({But not} 22. bxc5 Qc6+ 23. Kg3 Nf7 $17) 22... Rc8 {[%emt 0:19:45]} 23. Qxb6 {[%emt 0:05:12]} axb6 {[%emt 0:00:28]} 24. Rhc1 {[%emt 0:07:57] c5 is the strong threat.} Bxc4 {[%emt 0:02:25]} 25. Bxc4 {[%emt 0:00:11]} Nxc4 {[%emt 0:00:21]} 26. Nd3 {[%emt 0:03:38][%cal Od3b2]} Ke7 $1 {[%emt 0:01:44]} 27. a4 {[%emt 0:01:22]} Rhd8 {[%emt 0:09:23]} 28. Ke2 {[%emt 0:02:02]} Rd4 {[%emt 0:01:57]} 29. a5 {[%emt 0:03:12]} bxa5 {[%emt 0:00:30]} 30. bxa5 {[%emt 0:01:27]} Rcd8 {[%emt 0:01:17]} 31. Rc3 {[%emt 0:01:23]} Re4+ $1 {[%emt 0:00:51]} 32. Kf2 {[%emt 0:01:59] Black must now prevent a6.} Red4 $1 {[%emt 0:01:16] [#]} 33. Ne5 {[%emt 0:02:05]} (33. a6 $1 $14) 33... Nxe5 $11 {[%emt 0:11:44]} 34. fxe5 {[%emt 0:00:03][%mdl 4096] Endgame KRR-KRR} R8d7 {[%emt 0:02:08]} 35. a6 {[%emt 0:06:46]} Ra7 $1 {[%emt 0:00:27]} 36. Ra5 {[%emt 0:07:25]} Rd2+ {[%emt 0:05:51] The position is equal.} 37. Kf3 {[%emt 0:00:04]} Rb2 {[%emt 0:00:42]} 38. Rc6 {[%emt 0:00:19]} g5 {[%emt 0:01:01]} 39. Rd6 {[%emt 0:02:23]} Rc7 {[%emt 0:07:35] [#] ( -> ...Rc3+)} 40. Ra3 {[%emt 0:00:00] Inhibits Rc3+.} Rcc2 {[%emt 0:00:00]} ({Don't do} 40... g4+ 41. Kf4 Ra7 42. Rc3 $14) 41. Rdd3 {[%emt 0:11:08]} Rf2+ $1 {[%emt 0:31:52]} 42. Ke3 {[%emt 0:00:08] Threatens to win with a7.} Rbc2 $1 {[%emt 0:00:44]} 43. Rdb3 {[%emt 0:12:26]} Rcd2 {[%emt 0:05:07]} 44. Rd3 {[%emt 0:05:36]} Rc2 {[%emt 0:00:06]} 45. Rd1 {[%emt 0:00:58] aiming for a7.} Ra2 {[%emt 0:01:15] Hoping for ...f4+.} 46. Rdd3 {[%emt 0:03:18] And now a7 would win.} Rac2 $1 {Weighted Error Value: White=0.06 (flawless) /Black=0.02 (flawless)} 1/2-1/2

[Event "GCT Superbet Romania 2022"]
[Site "Bucharest"]
[Date "2022.05.08"]
[Round "4.4"]
[White "Vachier-Lagrave, Maxime"]
[Black "Caruana, Fabiano"]
[Result "1-0"]
[ECO "C82"]
[WhiteElo "2750"]
[BlackElo "2786"]
[Annotator "TA"]
[PlyCount "77"]
[EventDate "2022.05.05"]
[EventType "tourn"]
[EventCountry "ROU"]
[SourceTitle "playchess.com"]
[Source "ChessBase"]
[SourceQuality "1"]
[TimeControl "40/5400+30:1800+30"]

{[%evp 19,77,0,0,0,0,0,0,0,0,0,0,0,8,0,6,0,0,-25,-38,-12,-23,-61,102,105,120,114,108,118,138,118,143,134,166,140,219,204,214,210,216,271,265,225,216,216,214,201,210,211,301,303,303,302,315,315,318,250,530,517,522,470]} 1. e4 {[%emt 0:00:04]} e5 {[%emt 0:00:03]} 2. Nf3 {[%emt 0:00:06]} Nc6 {[%emt 0:00:04]} 3. Bb5 {[%emt 0:00:03]} a6 {[%emt 0:00:13]} 4. Ba4 {[%emt 0:00:03]} Nf6 {[%emt 0:00:05]} 5. O-O {[%emt 0:00:09]} Nxe4 {[%emt 0:00:06]} 6. d4 {[%emt 0:00:04]} b5 {[%emt 0:00:07]} 7. Bb3 {[%emt 0:00:04]} d5 {[%emt 0:00:05]} 8. dxe5 {[%emt 0:00:06]} Be6 {[%emt 0:00:04]} 9. c3 {[%emt 0:00:16]} Bc5 {[%emt 0:00:53]} 10. Nbd2 {[%emt 0:00:14]} O-O {[%emt 0:00:15]} 11. Bc2 {[%emt 0:00:04] C82: Open Ruy Lopez: 9 c3 without 9...Be7.} Nxf2 {[%emt 0:00:23]} 12. Rxf2 {[%emt 0:00:05][%cal Od2b3]} Bxf2+ {[%emt 0:00:05]} 13. Kxf2 {[%emt 0:00:04] The position is equal.} f6 {[%emt 0:00:05]} 14. Nf1 $1 {[%emt 0:01:04][%mdl 4] is currently scoring better than 14.exf6.} fxe5 {[%emt 0:00:38] White must now prevent ...e4.} 15. Kg1 {[%emt 0:00:04][%cal Oc2h7] Strongly threatening Bxh7+!} Qd7 $132 {[%emt 0:00:22][%mdl 2048] Black has counterplay} 16. Bg5 {[%emt 0:13:07]} Rae8 {[%emt 0:00:38] [#]} 17. Qd2 $146 {[%emt 0:20:00]} ({Predecessor:} 17. Bh4 d4 18. Ng3 Bd5 19. Ne4 Rf4 20. Qe1 Ref8 21. Bg3 Rxf3 22. gxf3 Rxf3 23. Ng5 Rf5 24. Ne4 Rf3 25. Ng5 Rf5 26. Ne4 {½-½ (26) Chen,Q (2479)-Bai,J (2600) Liaocheng 2021}) 17... d4 {[%emt 0:01:16]} (17... e4 $5 {[%cal Re4f3]} 18. Nd4 Ne5 $11) 18. Ng3 {[%emt 0:13:27][%cal Bf1g3,Bg3e4,Be4d2][%mdl 32]} (18. Qd3 Bf5 19. Bb3+ Kh8 $17) 18... h6 $1 {[%emt 0:14:59]} 19. Bh4 {[%emt 0:03:45]} dxc3 {[%emt 0:31:46]} 20. Qxc3 {[%emt 0:07:14] Hoping for Rd1.} Rxf3 $2 {[%emt 0:15:46]} 21. gxf3 $16 {[%emt 0:02:25] Black is on the road to losing.} Nd4 {[%emt 0:00:20] Prevents Ne2.} 22. Bd1 {[%emt 0:06:09]} Rf8 {[%emt 0:09:52] ...Bd5 is the strong threat.} (22... g5 $2 23. Ne4 $1 Qg7 24. Bg3 $18) 23. Ne4 {[%emt 0:02:44]} Bc4 {[%emt 0:00:06] Threatens to win with ...Qh3.} 24. Kg2 {[%emt 0:08:39] Inhibits Qh3+.} (24. b3 $2 Be2 25. Bf2 (25. Kh1 $2 Rxf3 26. Bxe2 Rxc3 $19) 25... Qh3 $19) 24... Rf4 {[%emt 0:05:56]} 25. Be1 {[%emt 0:04:01]} (25. Bg3 $2 Qh3+ $3 {[%mdl 512]} 26. Kf2 Qf1+ 27. Ke3 Rxf3+ 28. Bxf3 Qxf3+ 29. Kd2 Qe2+ 30. Kc1 Qxe4 $19) 25... Qf5 {[%emt 0:08:23] aiming for ...Rxe4.} 26. Nd2 {[%emt 0:04:39]} e4 {[%emt 0:08:16]} (26... Qg5+ $16 {might work better.} 27. Bg3 (27. Kh1 Bd5 $16) 27... Bd5) 27. Bg3 $1 $18 {[%emt 0:00:53]} (27. Nxc4 $2 exf3+ 28. Kg1 Qg4+ 29. Kf2 (29. Bg3 $2 f2+ 30. Kh1 f1=Q#) 29... Qh3 $19) (27. Nxe4 $2 Rxe4 28. a3 (28. fxe4 Qf1+ 29. Kg3 Qg1+ 30. Kh4 Qg5+ 31. Kh3 Bf1#) 28... Ne2 $1 29. fxe4 Qg6+ 30. Bg3 Nxc3 31. bxc3 Qxe4+ 32. Bf3 Qc2+ 33. Bf2 Qxc3 $19) 27... exf3+ {[%emt 0:00:50]} 28. Kf2 $1 {[%emt 0:00:28]} ({Not} 28. Nxf3 $2 {[#]} Qh3+ $3 {[%mdl 512]} 29. Kf2 Qf1+ 30. Ke3 b4 $1 $19 {[%mdl 512]}) (28. Bxf3 $2 Rxf3 $1 {[%mdl 512]} 29. Qxd4 (29. Nxf3 $2 {loses.} Nxf3 30. Rd1 Ng5 $19) 29... Bd5 30. Qxd5+ (30. Kg1 Rd3 $17) 30... Qxd5 $17) 28... Rg4 {[%emt 0:02:06]} 29. Nxc4 {[%emt 0:02:47] Dancing on a razor blade.} bxc4 {[%emt 0:00:02]} 30. Bxf3 {[%emt 0:00:25]} Nxf3 {[%emt 0:01:08]} 31. Qxf3 {[%emt 0:00:11]} Qc2+ {[%emt 0:00:04]} 32. Qe2 {[%emt 0:02:12]} Qf5+ {[%emt 0:00:02]} 33. Kg1 {[%emt 0:00:15]} h5 {[%emt 0:00:51]} (33... Re4 $142 34. Qf2 Qd5) 34. Rf1 {[%emt 0:00:25]} Qg6 {[%emt 0:01:02]} 35. Kh1 {[%emt 0:03:21]} h4 {[%emt 0:00:04]} 36. Bxc7 {[%emt 0:00:43]} h3 {[%emt 0:01:02][%cal Og4g1]} 37. Qf3 {[%emt 0:01:23]} Qd3 $2 {[%emt 0:00:19]} (37... Rg5 38. Bg3 Qc2 39. Qf8+ Kh7) 38. Be5 {[%emt 0:02:31]} Rg2 {[%emt 0:00:40]} 39. Bc3 {[%emt 0:01:07] Weighted Error Value: White=0.07 (flawless) /Black=0.30} 1-0